bitfinex/quotes_ETHUSD_20250929
["timestamp","ask_amount","ask_price","bid_price","bid_amount"]
[1759167651753,0.001,4158.3,4158.2,2.52488672]
[1759167651951,0.001,4158.3,4158.2,5.27788672]
[1759167652135,0.001,4158.3,4158.2,5.50748672]
[1759167652334,0.001,4158.3,4158.2,5.27788672]
[1759167652751,0.001,4158.3,4158.2,2.52488672]
[1759167652955,0.001,4158.3,4158.2,5.27788672]
[1759167653728,0.001,4158.3,4158.2,2.52488672]
[1759167653949,0.001,4158.3,4158.2,5.50748672]
[1759167654128,0.001,4158.3,4158.2,5.27788672]
[1759167658659,0.001,4158.3,4158.2,5.50748672]
[1759167659655,0.001,4158.3,4158.2,5.95378672]
[1759167660331,0.001,4158.3,4158.2,6.78966465]
[1759167660861,0.001,4158.3,4158.2,7.27844567]
[1759167661567,0.001,4158.3,4158.1,2.753]
[1759167661907,0.001,4158.3,4158.1,5.83383508]
[1759167662047,0.001,4158.3,4158.1,3.4289]
[1759167662244,0.001,4158.3,4158.1,2.753]
[1759167662468,0.001,4158.3,4158.1,5.15793631]
[1759167662768,0.001,4158.3,4158.1,2.753]
[1759167663673,0.001,4158.3,4158.2,3.08078672]
[1759167663873,0.001,4158.3,4158.2,3.90466504]
[1759167664038,0.001,4158.3,4158.2,3.45836504]
[1759167664230,0.001,4158.3,4158.2,3.90466504]
[1759167666486,0.001,4158.3,4158.2,4.37773955]
[1759167667100,0.001,4158.3,4158.2,1.29695283]
[1759167667784,0.001,4158.3,4158.2,3.93143955]
[1759167668783,0.001,4158.3,4158.2,1.52655283]
[1759167668991,0.001,4158.3,4158.2,0.47307451]
[1759167669292,0.001,4158.3,4158.2,2.40488672]
[1759167669993,0.001,4158.3,4157.2,0.4478]
[1759167670160,0.2386,4158.3,4157.6,3.0013]
[1759167670361,0.2386,4158.3,4157.8,2.40509886]
[1759167670588,0.001,4158.3,4158.0,2.40496626]
[1759167670755,0.001,4158.3,4158.1,2.752]
[1759167670958,0.001,4158.3,4158.1,5.15694347]
[1759167671685,0.001,4158.3,4158.2,0.12]
[1759167672889,0.6864,4158.3,4158.2,0.12]
[1759167673091,0.2386,4158.3,4158.2,0.12]
[1759167673260,0.001,4158.3,4158.2,0.12]
[1759167674200,0.001,4158.3,4158.2,2.52488672]
[1759167674558,0.001,4158.3,4158.2,0.12]
[1759167675254,0.001,4158.3,4158.2,2.52488672]
[1759167675671,0.001,4158.3,4158.2,0.12]
[1759167675870,0.001,4158.3,4158.2,2.52488672]
[1759167676065,0.001,4158.3,4158.2,0.12]
[1759167680526,2.40582889,4158.3,4158.2,0.12]
[1759167680686,0.6784,4158.3,4156.9,0.4483]
[1759167680872,2.40521884,4157.7,4156.9,2.40563008]
[1759167681068,0.70142764,4157.6,4157.0,2.752]
[1759167681385,2.40534949,4157.4,4156.8,0.002]
[1759167681701,0.02402764,4157.3,4156.9,2.752]
[1759167681898,0.248,4157.5,4156.9,5.15760062]
[1759167682206,0.02402764,4157.4,4156.9,5.15760062]
[1759167682407,0.27202764,4157.4,4156.9,5.15760062]
[1759167682573,0.27202764,4157.4,4156.9,2.752]
[1759167682771,2.42937791,4157.4,4156.9,2.752]
[1759167682971,0.6774,4157.3,4156.9,2.752]
[1759167683173,0.70142764,4157.2,4156.9,2.752]
[1759167683483,0.27202764,4157.2,4156.9,2.752]
[1759167683690,0.02402764,4157.2,4156.9,2.752]
[1759167683890,0.02402764,4157.4,4157.0,0.2366]
[1759167684195,0.02402764,4157.4,4156.9,5.60592484]
[1759167684594,0.02402764,4157.4,4156.9,5.84252484]
[1759167684793,0.02402764,4157.5,4156.9,5.84252484]
[1759167685193,0.02402764,4157.5,4157.0,2.40557085]
[1759167685395,0.02402764,4157.5,4156.9,5.84252176]
[1759167685579,0.02402764,4157.5,4157.0,2.40557143]
[1759167685782,0.02402764,4157.5,4157.0,2.40553613]
[1759167686004,0.02402764,4157.5,4157.1,3.09042053]
[1759167686307,2.42918763,4157.8,4157.1,3.09042053]
[1759167686508,0.02402764,4157.8,4157.1,0.6849]
[1759167686693,0.02402764,4157.8,4157.3,2.40540356]
[1759167687006,0.02402764,4157.9,4157.3,2.40540735]
[1759167687307,2.42989426,4158.3,4157.5,2.40523794]
[1759167687490,2.42989426,4158.3,4157.6,0.2366]
[1759167687808,0.02502764,4158.3,4157.7,2.6417578]
[1759167688009,0.001,4158.3,4157.8,3.4369]
[1759167688318,0.001,4158.3,4157.9,2.40504218]
[1759167689018,0.001,4158.3,4158.0,0.6849]
[1759167689379,0.02502764,4158.3,4158.1,0.2366]
[1759167689817,0.02502764,4158.3,4157.8,2.9886]
[1759167689991,0.27302764,4158.3,4157.9,2.752]
[1759167690518,0.27302764,4158.3,4158.0,0.12]
[1759167690809,2.67786739,4158.3,4158.0,0.12]
[1759167690989,0.27302764,4158.3,4158.0,0.12]
[1759167691717,0.248,4158.2,4158.0,0.12]
[1759167691878,0.02402764,4158.1,4158.0,0.12]
[1759167692081,0.27302764,4158.3,4158.0,0.12]
[1759167692303,0.02502764,4158.3,4158.0,0.12]
[1759167693207,0.248,4158.2,4158.0,0.12]
[1759167693415,8.9730536,4158.1,4157.0,0.884]
[1759167693589,2.40522431,4157.7,4157.0,0.884]
[1759167693918,0.02402764,4157.6,4157.0,3.97448075]
[1759167694314,0.02402764,4157.6,4157.0,1.5689]
[1759167694488,0.02402764,4157.6,4157.1,2.40547854]
[1759167694826,0.02402764,4157.7,4157.2,2.40544518]
[1759167695004,0.02402764,4157.7,4157.1,2.40550995]
[1759167695214,0.02402764,4157.7,4157.2,3.09035978]
[1759167695812,0.02402764,4157.7,4157.3,0.2366]
[1759167697288,0.02402764,4157.7,4157.3,0.6849]
[1759167697711,0.02402764,4157.7,4157.4,0.6849]
[1759167698108,0.74767162,4157.8,4157.5,0.6849]
[1759167698410,0.02402764,4157.8,4157.6,0.6849]
[1759167698613,0.02402764,4157.8,4157.7,0.2366]
[1759167698822,0.02402764,4158.2,4157.8,2.405118]
[1759167699004,0.02402764,4158.2,4157.7,0.6849]
[1759167699005,0.001,4158.3,4157.9,3.4369]
[1759167699180,0.001,4158.3,4158.0,2.40500221]
[1759167699383,0.001,4158.3,4158.0,3.09240221]
[1759167699603,0.001,4158.3,4158.1,0.6874]
[1759167699790,0.001,4158.3,4158.2,5.18093558]
[1759167699980,0.001,4158.3,4158.2,6.32035468]
[1759167702625,0.001,4158.3,4158.2,6.79916255]
[1759167703392,0.001,4158.3,4158.2,6.91916255]
[1759167706733,0.02502764,4159.2,4158.2,6.91916255]
[1759167706734,2.40434856,4159.2,4158.2,4.39427583]
[1759167707030,2.87757011,4159.1,4158.4,2.4047202]
[1759167707232,3.11873327,4159.7,4158.7,2.40456044]
[1759167707523,2.40419973,4159.4,4158.8,2.752]
[1759167708230,2.40425122,4159.3,4158.8,2.752]
[1759167708418,3.11895122,4159.3,4158.8,2.752]
[1759167708723,0.4732,4159.2,4158.8,2.752]
[1759167709529,0.7147,4159.1,4158.2,0.95487583]
[1759167709714,0.7147,4159.1,4158.4,2.40476736]
[1759167709715,9.60997442,4159.1,4158.4,2.40476736]
[1759167709892,3.11908191,4159.1,4158.4,2.40476736]
[1759167710609,2.40443159,4159.0,4158.3,2.752]
[1759167710810,2.40443159,4159.0,4158.3,5.15681354]
[1759167711029,2.40448504,4158.9,4158.3,3.62457327]
[1759167711337,2.40463548,4158.7,4158.4,2.752]
[1759167711501,2.4047529,4158.5,4158.1,2.752]
[1759167711700,0.7147,4158.5,4158.1,2.752]
[1759167711905,0.2415,4158.5,4158.1,2.752]
[1759167712212,2.4046989,4158.6,4158.1,2.752]
[1759167712529,3.1193989,4158.6,4158.1,2.752]
[1759167713921,3.11937141,4158.6,4158.1,2.752]
[1759167714126,3.11937141,4158.6,4158.0,2.752]
[1759167714306,2.40471442,4158.5,4158.0,2.752]
[1759167714641,2.40488672,4158.2,4157.8,2.752]
[1759167714811,0.7147,4158.1,4157.6,2.752]
[1759167715016,6.49088259,4158.3,4157.6,5.15722475]
[1759167715211,8.89573448,4158.3,4157.6,5.15722475]
[1759167715417,2.4048894,4158.2,4157.6,2.752]
[1759167715635,2.40500846,4158.0,4157.6,2.752]
[1759167715836,0.7147,4157.9,4156.8,0.002]
[1759167716023,2.4052172,4157.7,4156.9,5.15763299]
[1759167716227,2.40526778,4157.6,4157.0,2.752]
[1759167716436,3.11989564,4157.7,4157.0,2.752]
[1759167716602,3.11989564,4157.7,4157.1,0.12]
[1759167717025,0.7147,4157.7,4157.1,2.52552023]
[1759167717352,2.752,4158.0,4157.4,0.12]
[1759167717510,2.40507631,4157.9,4157.4,0.12]
[1759167717709,2.40506024,4157.9,4157.4,0.12]
[1759167718033,2.87826024,4157.9,4157.4,0.12]
[1759167718207,0.12,4158.1,4157.4,0.12]
[1759167718401,0.12,4158.1,4157.5,2.40528672]
[1759167718637,2.40495121,4158.1,4157.4,5.84473533]
[1759167718835,2.40500945,4158.0,4157.6,0.12]
[1759167719409,2.40495076,4158.1,4157.6,0.12]
[1759167719609,2.40515945,4157.8,4157.4,2.752]
[1759167719841,0.7147,4157.7,4157.4,2.872]
[1759167720715,0.7147,4157.6,4156.8,0.002]
[1759167720918,2.40529164,4157.5,4157.1,0.12]
[1759167721114,9.01603952,4157.8,4157.1,0.12]
[1759167721115,2.52517191,4157.8,4157.1,0.12]
[1759167721320,2.52517191,4157.8,4157.1,2.97832138]
[1759167722344,0.12,4157.8,4157.2,2.40545365]
[1759167722847,2.52517313,4157.8,4157.1,2.97831804]
[1759167723344,0.12,4157.8,4157.1,2.97831804]
[1759167724341,2.40518385,4157.7,4157.1,2.97831804]
[1759167724543,2.52513316,4157.8,4157.1,2.97831804]
[1759167725450,0.5932,4157.8,4157.1,0.12]
[1759167725634,2.40535227,4157.4,4157.1,0.12]
[1759167725859,2.40535227,4157.4,4156.8,0.002]
[1759167725860,0.7147,4157.3,4156.8,0.002]
[1759167726061,0.7147,4157.3,4156.8,0.122]
[1759167726239,0.7147,4157.2,4156.8,0.122]
[1759167726441,3.1201728,4157.2,4156.8,0.122]
[1759167726972,0.2415,4157.2,4156.8,0.122]
[1759167727776,6.49088259,4157.4,4156.9,0.4528]
[1759167728070,2.52530786,4157.5,4157.0,0.6874]
[1759167728242,2.40535492,4157.4,4157.0,0.6874]
[1759167728570,2.40535492,4157.4,4156.8,2.52769111]
[1759167728768,2.40535492,4157.4,4157.0,0.6874]
[1759167729507,0.12,4157.5,4157.0,0.6874]
[1759167729668,0.12,4157.5,4157.1,0.7042]
[1759167730367,2.63826893,4157.9,4157.2,0.7042]
[1759167730368,0.12,4157.8,4157.2,0.7042]
[1759167730569,0.12,4157.8,4157.3,0.7042]
[1759167730777,0.12,4158.2,4157.5,2.52525289]
[1759167730981,0.12,4158.2,4157.6,2.40522471]
[1759167731155,0.84358987,4158.2,4157.6,3.10942471]
[1759167731482,0.84358987,4158.2,4157.6,0.7042]
[1759167731781,2.405047,4158.0,4157.6,0.7042]
[1759167731946,2.405047,4158.0,4157.5,2.872]
[1759167732455,0.3532,4158.2,4157.5,2.872]
[1759167732660,2.5249237,4158.2,4157.6,0.7042]
[1759167733187,2.40494456,4158.1,4157.6,0.7042]
[1759167733386,2.40503955,4158.0,4157.5,2.872]
[1759167734349,2.40496219,4158.1,4157.5,2.872]
[1759167734752,2.52490668,4158.2,4157.6,0.6996]
[1759167734985,0.12,4158.2,4157.6,3.10481384]
[1759167735288,3.47556718,4158.4,4157.7,0.6996]
[1759167735289,0.72356718,4158.4,4157.7,0.6996]
[1759167735449,2.4046963,4158.6,4157.9,0.12]
[1759167735450,2.5246963,4158.6,4157.9,0.12]
[1759167735765,2.40472839,4158.5,4158.0,0.6996]
[1759167735971,2.40478268,4158.4,4158.0,0.6996]
[1759167736168,0.12,4158.6,4158.0,0.6996]
[1759167736169,2.40472916,4158.5,4158.0,0.6996]
[1759167736563,2.40477739,4158.4,4158.0,0.6996]
[1759167737547,2.40471323,4158.5,4158.0,0.6996]
[1759167737976,2.52467447,4158.6,4158.0,0.6996]
[1759167738488,0.12,4158.6,4158.0,3.10459025]
[1759167738781,0.12,4158.6,4158.0,1.26497529]
[1759167739163,2.52466988,4158.6,4158.0,1.26497529]
[1759167739361,2.52466988,4158.6,4158.0,0.6996]
[1759167739681,2.40471959,4158.5,4158.0,0.6996]
[1759167740182,0.12,4158.6,4158.0,0.6996]
[1759167740384,2.40476218,4158.5,4158.0,0.6996]
[1759167740791,2.40472617,4158.5,4157.9,2.872]
[1759167741184,2.40487377,4158.3,4157.9,0.12]
[1759167741863,2.4047881,4158.4,4157.9,0.12]
[1759167742665,2.40483396,4158.3,4157.9,0.12]
[1759167743692,0.6821,4158.2,4157.9,0.12]
[1759167743995,2.40495631,4158.1,4157.9,0.12]
[1759167744382,2.4049064,4158.2,4157.9,0.12]
[1759167744895,2.4050024,4158.0,4157.9,0.12]
[1759167745102,3.0871024,4158.0,4157.6,0.12]
[1759167745298,0.6821,4158.0,4157.6,0.12]
[1759167745771,2.40510322,4157.9,4157.6,0.12]
[1759167745976,2.40512073,4157.8,4157.6,0.12]
[1759167746179,6.49088259,4158.1,4157.6,0.12]
[1759167746378,2.4050118,4158.0,4157.6,0.12]
[1759167747004,9.24288259,4158.1,4157.6,0.12]
[1759167747219,6.49088259,4157.8,4157.0,0.002]
[1759167747499,2.40536872,4157.4,4157.0,0.122]
[1759167748619,3.5541,4157.7,4157.0,0.122]
[1759167748817,2.40529164,4157.5,4157.0,0.122]
[1759167749117,2.40537967,4157.4,4157.0,0.122]
[1759167749492,2.40530489,4157.5,4157.0,0.122]
[1759167749689,2.40530489,4157.5,4157.0,0.8216]
[1759167749910,2.40523378,4157.6,4157.0,0.8216]
[1759167750113,2.40529164,4157.5,4157.0,0.122]
[1759167750413,2.40523378,4157.6,4157.0,0.122]
[1759167750615,2.64024955,4157.6,4157.0,0.122]
[1759167750825,6.49088259,4158.3,4157.1,0.6996]
[1759167751115,6.49088259,4158.3,4157.2,0.2432]
[1759167751116,2.40506073,4157.9,4157.2,0.2432]
[1759167751294,2.40518356,4157.7,4157.2,0.2432]
[1759167751818,2.40529361,4157.5,4157.2,0.6996]
[1759167752124,2.40529361,4157.5,4157.0,0.2452]
[1759167752312,2.40529361,4157.5,4157.1,0.2432]
[1759167752512,2.40529361,4157.5,4157.1,0.6996]
[1759167752819,2.40524479,4157.6,4157.1,0.6996]
[1759167753421,2.40529259,4157.5,4157.1,0.6996]
[1759167753903,2.40525227,4157.6,4157.1,0.6996]
[1759167754538,0.235,4157.9,4157.1,0.6996]
[1759167754839,2.40533519,4157.5,4157.1,0.6996]
[1759167755399,0.235,4157.9,4157.1,0.6996]
[1759167755605,6.49088259,4157.4,4157.0,0.002]
[1759167755825,2.40551876,4157.2,4157.0,0.002]
[1759167756710,8.89623546,4157.4,4157.0,0.002]
[1759167756911,2.40552308,4157.1,4157.0,0.002]
[1759167763612,2.40552308,4157.1,4157.0,0.2397]
[1759167763817,2.40552308,4157.1,4157.0,0.002]
[1759167764851,5.52547674,4157.2,4157.0,0.002]
[1759167765026,3.0,4157.4,4157.0,0.7008]
[1759167765230,5.40535369,4157.4,4157.1,0.6988]
[1759167765533,5.40535369,4157.4,4157.2,0.6988]
[1759167766038,2.40535369,4157.4,4157.0,0.122]
[1759167766347,2.40535369,4157.4,4157.1,0.6988]
[1759167767333,2.872,4157.7,4157.0,0.122]
[1759167767549,2.40536174,4157.4,4157.2,0.6988]
[1759167767748,2.40536174,4157.4,4157.0,0.122]
[1759167767956,2.4053414,4157.5,4157.1,0.6988]
[1759167768133,2.40536165,4157.4,4157.1,0.6988]
[1759167768315,2.40536165,4157.4,4157.0,0.122]
[1759167768521,2.63044949,4157.4,4157.0,0.122]
[1759167768717,2.40552308,4157.1,4157.0,0.002]
[1759167769354,3.10392308,4157.1,4157.0,0.002]
[1759167770969,6.10392308,4157.1,4157.0,0.002]
[1759167773145,5.40552308,4157.1,4157.0,0.002]
[1759167773362,3.0,4157.1,4157.0,0.002]
[1759167773557,3.0,4157.1,4157.0,0.7008]
[1759167777867,2.752,4157.6,4157.0,0.7008]
[1759167778067,2.752,4157.6,4157.1,0.2377]
[1759167778068,5.40534484,4157.5,4157.1,0.2377]
[1759167778569,5.40534484,4157.5,4157.2,0.2377]
[1759167778768,5.40534484,4157.5,4157.2,0.4611]
[1759167779070,5.40525515,4157.6,4157.3,0.6988]
[1759167779266,3.0,4157.6,4157.4,0.6988]
[1759167780253,5.40523891,4157.6,4157.4,0.6988]
[1759167780453,2.40529164,4157.5,4157.4,0.6988]
[1759167780670,5.4052535,4157.6,4157.4,0.6988]
[1759167780978,3.0,4157.6,4157.4,0.6988]
[1759167781177,5.4052527,4157.6,4157.4,0.6988]
[1759167781546,3.0,4157.6,4157.4,0.6988]
[1759167781874,2.52519056,4157.7,4157.4,0.6988]
[1759167782177,2.40524001,4157.6,4157.4,0.6988]
[1759167782375,2.40524001,4157.6,4157.4,0.4611]
[1759167782676,0.12,4157.7,4157.5,0.6988]
[1759167782974,8.27854713,4158.1,4157.6,0.8188]
[1759167782975,2.40506698,4157.9,4157.6,0.8188]
[1759167783146,2.40506698,4157.9,4157.6,0.12]
[1759167783345,2.40506698,4157.9,4157.7,0.2377]
[1759167783972,2.40517593,4157.7,4157.6,0.12]
[1759167784567,0.2251,4158.1,4157.6,0.12]
[1759167784779,2.63014851,4158.0,4157.6,0.12]
[1759167784977,2.40506441,4157.9,4157.6,0.12]
[1759167785177,2.40514065,4157.8,4157.6,0.12]
[1759167785476,3.0,4157.9,4157.6,0.12]
[1759167785652,2.40506141,4157.9,4157.6,0.12]
[1759167785852,2.63016141,4157.9,4157.6,0.12]
[1759167786195,2.40517593,4157.7,4157.6,0.12]
[1759167786694,2.40517593,4157.7,4157.0,5.61966769]
[1759167786695,2.40544614,4157.3,4157.0,0.122]
[1759167786873,2.4053614,4157.4,4157.0,0.122]
[1759167787078,2.4053614,4157.4,4157.0,0.3597]
[1759167787384,2.4053614,4157.4,4157.0,0.8208]
[1759167787589,2.40530829,4157.5,4157.0,0.8208]
[1759167787962,2.63036597,4157.6,4157.0,0.8208]
[1759167788171,2.4053934,4157.4,4157.0,0.8208]
[1759167788892,0.2251,4157.6,4157.1,0.2377]
[1759167789187,3.3443,4157.7,4157.2,0.4611]
[1759167789188,2.871,4157.7,4157.2,0.4611]
[1759167789370,2.871,4157.7,4157.0,0.122]
[1759167789569,2.4052582,4157.6,4157.1,0.6638]
[1759167789881,2.4052582,4157.6,4157.2,0.2334]
[1759167790076,2.871,4157.7,4157.2,0.6638]
[1759167790280,2.871,4157.7,4157.0,0.122]
[1759167790281,5.27619474,4157.7,4157.0,0.122]
[1759167790590,2.40523378,4157.6,4157.1,0.6638]
[1759167790969,2.40530901,4157.5,4157.0,0.122]
[1759167791185,2.40530901,4157.5,4157.0,0.3554]
[1759167791390,2.40525324,4157.6,4157.1,0.6638]
[1759167791785,2.871,4157.7,4157.2,0.2334]
[1759167791990,2.871,4157.7,4157.2,0.6638]
[1759167792492,2.40539032,4157.4,4157.0,0.122]
[1759167793393,2.40529754,4157.5,4157.1,0.2334]
[1759167793595,2.40529754,4157.5,4157.1,0.6638]
[1759167793766,5.27623238,4157.7,4157.1,0.4304]
[1759167793967,2.40533695,4157.5,4157.2,0.2334]
[1759167794495,2.40533695,4157.5,4157.1,0.4304]
[1759167794792,2.40533695,4157.5,4157.1,0.6643]
[1759167794992,2.40533695,4157.5,4157.1,0.4304]
[1759167795194,2.40533695,4157.5,4157.2,0.2339]
[1759167795491,2.871,4157.7,4157.0,0.122]
[1759167795692,2.871,4157.7,4157.3,0.2339]
[1759167795877,2.40524327,4157.6,4157.3,0.2339]
[1759167796392,2.40524327,4157.6,4157.0,0.122]
[1759167796693,2.52518814,4157.7,4157.1,0.6946]
[1759167796908,2.40523378,4157.6,4157.0,0.122]
[1759167797391,2.40536359,4157.4,4157.0,0.122]
[1759167797786,2.40536359,4157.4,4157.0,0.8166]
[1759167799095,2.40552308,4157.1,4157.0,0.002]
[1759167799297,2.9772,4157.3,4157.0,0.002]
[1759167799496,0.2262,4157.1,4157.0,0.002]
[1759167800096,2.63172308,4157.1,4157.0,0.002]
[1759167800272,0.2262,4157.1,4157.0,0.002]
[1759167800478,2.63172308,4157.1,4157.0,0.002]
[1759167800798,3.08302308,4157.1,4157.0,0.002]
[1759167803194,2.40552308,4157.1,4157.0,0.002]
[1759167803601,6.08302308,4157.1,4157.0,0.002]
[1759167803967,17.11257021,4157.1,4157.0,0.002]
[1759167806997,8.83402308,4157.1,4157.0,0.002]
[1759167810308,8.93053898,4157.1,4157.0,0.002]
[1759167819134,8.49333898,4157.1,4157.0,0.002]
[1759167819729,8.93793898,4157.1,4157.0,0.002]
[1759167820315,15.43414057,4157.1,4157.0,0.002]
[1759167821630,14.98954057,4157.1,4157.0,0.002]
[1759167821823,15.43414057,4157.1,4157.0,0.002]
[1759167822911,15.78154057,4157.1,4157.0,0.002]
[1759167823120,16.22614057,4157.1,4157.0,0.002]
[1759167823753,16.22614057,4157.1,4156.5,0.002]
[1759167823754,2.40581244,4156.6,4156.5,0.002]
[1759167823920,1.447,4156.3,4154.3,0.4939887]
[1759167824239,5.40650719,4155.4,4154.9,0.4647]
[1759167824442,5.40650719,4155.4,4155.3,0.7094]
[1759167824641,5.751,4155.4,4155.3,0.7094]
[1759167824944,8.15750719,4155.4,4155.3,0.7094]
[1759167827041,5.751,4155.4,4155.3,0.7094]
[1759167827245,8.15750719,4155.4,4155.3,0.7094]
[1759167827607,3.0,4156.6,4155.3,0.7094]
[1759167827915,2.40619916,4156.0,4155.4,0.7074]
[1759167828113,2.40612119,4156.1,4155.5,0.7074]
[1759167828313,2.40612119,4156.1,4155.6,0.7074]
[1759167828545,3.0,4156.0,4155.6,0.7074]
[1759167828737,3.0,4156.0,4155.7,0.7074]
[1759167829045,3.0,4156.0,4155.8,0.7074]
[1759167829214,3.0,4156.0,4155.9,0.7074]
[1759167829415,2.40565064,4156.9,4155.9,0.7074]
[1759167829416,2.40569893,4156.8,4155.9,0.7074]
[1759167829623,2.751,4156.7,4156.0,0.7074]
[1759167829922,3.0,4156.6,4156.1,0.7074]
[1759167830120,2.40585268,4156.6,4156.2,0.7074]
[1759167830320,2.40588099,4156.5,4156.2,0.7074]
[1759167830520,2.40588099,4156.5,4156.3,0.7074]
[1759167830722,5.40583079,4156.6,4156.4,0.7074]
[1759167830927,5.40583079,4156.6,4156.5,0.7074]
[1759167833957,5.52583079,4156.6,4156.2,0.7074]
[1759167834271,2.40587032,4156.5,4156.3,0.7074]
[1759167834419,2.40587032,4156.5,4155.9,0.12]
[1759167834623,3.12,4156.6,4156.0,0.7094]
[1759167834855,2.40587032,4156.5,4156.1,0.7074]
[1759167835061,5.15687032,4156.5,4156.2,0.7074]
[1759167835355,2.4059282,4156.4,4156.3,0.7074]
[1759167835536,2.4059282,4156.4,4156.0,0.002]
[1759167836360,2.4059282,4156.4,4156.1,0.7074]
[1759167836561,2.4059282,4156.4,4156.2,0.7074]
[1759167836762,2.4059282,4156.4,4156.3,0.7074]
[1759167838443,5.15688601,4156.5,4156.3,0.7074]
[1759167838647,2.4059282,4156.4,4156.3,0.7074]
[1759167838835,8.1568855,4156.5,4156.3,0.7074]
[1759167839352,8.1568855,4156.5,4156.4,0.2447]
[1759167840266,2.4059282,4156.4,4156.3,0.4627]
[1759167840566,2.4059282,4156.4,4156.3,0.2447]
[1759167841642,2.40600427,4156.3,4156.1,0.7074]
[1759167841839,2.40600427,4156.3,4156.0,0.002]
[1759167841840,5.751,4156.5,4156.2,0.2447]
[1759167842218,5.751,4156.5,4156.3,0.7074]
[1759167842377,5.751,4156.5,4156.4,0.7074]
[1759167842670,8.15687032,4156.5,4156.4,0.7074]
[1759167842966,8.15687032,4156.5,4156.4,0.2447]
[1759167843537,2.40594059,4156.4,4156.2,0.4627]
[1759167843737,2.40594059,4156.4,4156.3,0.2447]
[1759167843938,8.1568901,4156.5,4156.3,0.2447]
[1759167844166,8.1568901,4156.5,4156.3,0.7074]
[1759167844665,2.40600668,4156.3,4156.0,0.002]
[1759167844871,0.2403,4156.4,4156.0,0.002]
[1759167845069,2.40610187,4156.1,4156.0,0.002]
[1759167845284,8.15610187,4156.1,4156.0,0.002]
[1759167845445,9.30370187,4156.1,4156.0,0.002]
[1759167848552,8.85910187,4156.1,4156.0,0.002]
[1759167851642,6.10910187,4156.1,4156.0,0.002]
[1759167851847,6.10860187,4156.1,4156.0,0.002]
[1759167852075,8.85860187,4156.1,4156.0,0.002]
[1759167852357,9.30700187,4156.1,4156.0,0.002]
[1759167852774,8.85860187,4156.1,4156.0,0.002]
[1759167852985,9.30700187,4156.1,4156.0,0.002]
[1759167853772,10.09900187,4156.1,4156.0,0.002]
[1759167854079,6.19833346,4155.7,4155.6,0.002]
[1759167854379,21.94073664,4155.7,4155.6,0.002]
[1759167854583,22.61823664,4155.7,4155.6,0.002]
[1759167854791,22.7147989,4155.7,4155.6,0.002]
[1759167858484,11.99909731,4155.7,4155.6,0.002]
[1759167858659,14.74909731,4155.7,4155.6,0.002]
[1759167858859,14.98279731,4155.7,4155.6,0.002]
[1759167859166,15.42659731,4155.7,4155.6,0.002]
[1759167859680,21.9227989,4155.7,4155.6,0.002]
[1759167860056,15.42659731,4155.7,4155.6,0.002]
[1759167860496,21.9227989,4155.7,4155.6,0.002]
[1759167862166,22.7147989,4155.7,4155.6,0.002]
[1759167863297,16.21859731,4155.7,4155.6,0.002]
[1759167863498,8.15633346,4155.7,4155.6,0.002]
[1759167863659,11.90253505,4155.7,4155.6,0.002]
[1759167863862,14.65253505,4155.7,4155.6,0.002]
[1759167865885,11.90253505,4155.7,4155.6,0.002]
[1759167866086,5.40633346,4155.7,4155.6,0.6681]
[1759167866282,8.15633346,4155.7,4155.6,0.6681]
[1759167870382,5.40633346,4155.7,4155.6,0.6681]
[1759167870587,8.15633346,4155.7,4155.6,0.6681]
[1759167871210,0.001,4156.0,4155.6,0.6681]
[1759167871529,2.52622284,4155.9,4155.7,0.6661]
[1759167871690,0.12,4155.9,4155.8,0.6661]
[1759167872227,0.001,4156.0,4155.8,3.07235573]
[1759167872429,0.001,4156.0,4155.9,0.6661]
[1759167872631,0.001,4156.0,4155.9,3.07231766]
[1759167872928,0.001,4156.0,4155.9,1.93547316]
[1759167874193,0.001,4156.0,4155.9,0.6661]
[1759167876829,0.001,4156.0,4155.9,3.07231766]
[1759167877424,0.001,4156.0,4155.9,0.6661]
[1759167879912,0.001,4156.0,4155.9,0.2342]
[1759167880111,2.40715976,4156.0,4155.9,0.7014]
[1759167880435,2.40715976,4156.0,4155.6,0.2362]
[1759167880436,2.40625714,4155.9,4155.6,0.2362]
[1759167880603,2.40625714,4155.9,4155.6,0.002]
[1759167880931,0.001,4156.0,4155.7,0.7014]
[1759167881132,0.001,4156.0,4155.8,0.7014]
[1759167881133,2.75,4156.0,4155.8,0.7014]
[1759167881312,2.75,4156.0,4155.9,0.7014]
[1759167882113,5.15615976,4156.0,4155.9,0.7014]
[1759167882707,2.75,4156.0,4155.9,0.7014]
[1759167885739,5.15615976,4156.0,4155.9,0.7014]
[1759167886054,5.15615976,4156.0,4155.9,0.2342]
[1759167886222,2.40715976,4156.0,4155.9,0.2342]
[1759167887244,0.001,4156.0,4155.9,0.2342]
[1759167887453,2.40715976,4156.0,4155.9,0.2342]
[1759167887952,0.001,4156.0,4155.9,0.2342]
[1759167888635,0.001,4156.0,4155.9,0.7014]
[1759167890365,3.0,4155.9,4155.7,0.12]
[1759167890528,2.40633346,4155.7,4155.6,0.002]
[1759167891363,5.27530088,4155.8,4155.6,0.002]
[1759167891523,2.40633346,4155.7,4155.6,0.002]
[1759167893064,2.869,4155.8,4155.6,0.002]
[1759167893352,2.40633346,4155.7,4155.6,0.002]
[1759167893552,5.27528395,4155.8,4155.6,0.2362]
[1759167893750,5.27528395,4155.8,4155.6,0.7034]
[1759167894832,0.12,4155.8,4155.7,0.7014]
[1759167895036,5.749,4155.8,4155.7,0.7014]